bitfinex/quotes_BTCUSD_20250826
["timestamp","ask_amount","ask_price","bid_price","bid_amount"]
[1756190606878,0.85313034,110260.0,110240.0,0.18140669]
[1756190606998,0.19348524,110260.0,110250.0,0.24598202]
[1756190607207,0.85517034,110260.0,110250.0,0.24598202]
[1756190608036,0.8553135,110260.0,110250.0,0.24590202]
[1756190608443,0.18142235,110240.0,110230.0,0.33946]
[1756190608643,0.84631745,110240.0,110230.0,0.76680082]
[1756190609067,0.84631745,110240.0,110230.0,0.76880082]
[1756190609263,0.84631745,110240.0,110230.0,0.76780082]
[1756190609428,0.84631745,110240.0,110230.0,0.76995082]
[1756190611363,0.84631745,110240.0,110230.0,0.61551082]
[1756190611577,0.84631745,110240.0,110230.0,0.58636202]
[1756190611788,0.84631745,110240.0,110230.0,0.61336082]
[1756190612001,0.84631745,110240.0,110230.0,0.76776082]
[1756190612198,0.84631745,110240.0,110230.0,0.49906082]
[1756190612691,0.84631745,110240.0,110230.0,0.50121082]
[1756190614834,0.59832403,110240.0,110230.0,0.50121082]
[1756190615081,0.77974638,110240.0,110230.0,0.50425082]
[1756190615289,0.78178638,110240.0,110230.0,0.50425082]
[1756190615712,0.78178638,110240.0,110230.0,0.34466082]
[1756190615916,0.78178638,110240.0,110230.0,0.31754202]
[1756190616729,0.78178638,110240.0,110230.0,0.49898082]
[1756190617179,0.77974638,110240.0,110230.0,0.50417082]
[1756190619051,0.77974638,110240.0,110230.0,0.50817082]
[1756190619283,0.18142235,110240.0,110230.0,0.50817082]
[1756190619495,0.84106745,110240.0,110230.0,0.50817082]
[1756190619698,0.84304745,110240.0,110230.0,0.32669202]
[1756190619905,0.84304745,110240.0,110230.0,0.32146202]
[1756190620787,0.84304745,110240.0,110230.0,0.50505082]
[1756190620996,0.84304745,110240.0,110230.0,0.50809082]
[1756190621674,0.18142235,110240.0,110230.0,0.50809082]
[1756190621879,0.84106745,110240.0,110230.0,0.50809082]
[1756190622300,0.18142014,110250.0,110230.0,0.50809082]
[1756190622505,0.18142014,110250.0,110240.0,0.09146202]
[1756190622732,0.18341014,110250.0,110240.0,0.09146202]
[1756190623676,0.84305524,110250.0,110240.0,0.09146202]
[1756190626694,0.84568524,110250.0,110240.0,0.24766202]
[1756190628046,0.87295924,110250.0,110240.0,0.24766202]
[1756190628235,0.87295924,110250.0,110240.0,0.24762202]
[1756190628648,0.87032924,110250.0,110240.0,0.24762202]
[1756190628845,0.21068414,110250.0,110240.0,0.24762202]
[1756190629045,0.21068414,110250.0,110240.0,0.25281202]
[1756190629277,0.87032924,110250.0,110240.0,0.25281202]
[1756190629616,0.6869191,110250.0,110240.0,0.43423437]
[1756190629951,0.6869191,110250.0,110240.0,0.43183437]
[1756190630368,0.86832499,110250.0,110240.0,0.43183437]
[1756190630568,0.6869191,110250.0,110240.0,0.43183437]
[1756190630986,0.6869191,110250.0,110240.0,0.43283437]
[1756190631610,0.86832499,110250.0,110240.0,0.43283437]
[1756190633180,0.6869191,110250.0,110240.0,0.43283437]
[1756190633387,0.027274,110250.0,110240.0,0.43283437]
[1756190634605,0.8503235,110260.0,110240.0,0.43283437]
[1756190634823,0.8503235,110260.0,110240.0,0.42979437]
[1756190635045,0.8775945,110260.0,110250.0,0.00304]
[1756190635269,0.8795745,110260.0,110250.0,0.09665202]
[1756190635512,0.8795745,110260.0,110250.0,0.09146202]
[1756190636175,0.8822145,110260.0,110250.0,0.09146202]
[1756190636392,0.8822145,110260.0,110250.0,0.24554202]
[1756190637047,0.8822145,110260.0,110250.0,0.09146202]
[1756190637492,0.8822145,110260.0,110250.0,0.24550202]
[1756190640439,0.8822145,110260.0,110250.0,0.24546202]
[1756190641248,0.8822145,110260.0,110250.0,0.24646202]
[1756190643378,0.8795745,110260.0,110250.0,0.24646202]
[1756190643586,0.8822245,110260.0,110250.0,0.24646202]
[1756190644460,0.8822245,110260.0,110250.0,0.155]
[1756190645089,0.66698231,110260.0,110250.0,0.155]
[1756190645303,0.85747069,110260.0,110250.0,0.001]
[1756190645747,1.01147069,110260.0,110250.0,0.001]
[1756190650132,0.34713838,110260.0,110250.0,0.001]
[1756190650336,1.00520348,110260.0,110250.0,0.001]
[1756190650772,1.0338276,110260.0,110250.0,0.001]
[1756190650968,1.00520348,110260.0,110250.0,0.001]
[1756190651172,1.03247848,110260.0,110250.0,0.001]
[1756190656833,1.37247848,110260.0,110250.0,0.001]
[1756190657051,1.37314848,110260.0,110250.0,0.001]
[1756190657869,1.39859248,110260.0,110250.0,0.001]
[1756190658288,1.39859248,110260.0,110230.0,0.07624699]
[1756190658289,0.18142235,110240.0,110230.0,0.07624699]
[1756190658510,0.84213745,110240.0,110230.0,0.16986901]
[1756190659148,0.84106745,110240.0,110230.0,0.16986901]
[1756190659360,0.18249235,110240.0,110230.0,0.16986901]
[1756190659580,0.84106745,110240.0,110230.0,0.16986901]
[1756190659993,0.86941545,110240.0,110230.0,0.16986901]
[1756190660414,0.86834545,110240.0,110230.0,0.16986901]
[1756190661031,0.86834545,110240.0,110230.0,0.09657202]
[1756190661455,0.86834545,110240.0,110230.0,0.00295]
[1756190661456,1.68306055,110240.0,110230.0,0.00295]
[1756190661669,0.18145527,110220.0,110210.0,0.22729699]
[1756190661880,0.84110037,110220.0,110210.0,0.32091901]
[1756190662375,0.84110037,110220.0,110210.0,0.09657202]
[1756190663089,0.84118687,110220.0,110210.0,0.09657202]
[1756190664468,0.86846787,110220.0,110210.0,0.09657202]
[1756190666365,0.86846787,110220.0,110210.0,0.09661202]
[1756190669331,0.86846787,110220.0,110210.0,0.09861202]
[1756190669879,0.86846787,110220.0,110210.0,0.10261202]
[1756190672727,0.20882277,110220.0,110210.0,0.10249202]
[1756190672934,0.86953787,110220.0,110210.0,0.09750202]
[1756190673152,0.20989277,110220.0,110210.0,0.10262202]
[1756190673370,0.86953787,110220.0,110210.0,0.10262202]
[1756190674586,0.86953787,110220.0,110210.0,0.09862202]
[1756190675177,0.86953787,110220.0,110210.0,0.09962202]
[1756190676121,0.86953787,110220.0,110210.0,0.09762202]
[1756190678715,0.86953787,110220.0,110210.0,0.09558202]
[1756190679570,0.86953787,110220.0,110210.0,0.09762202]
[1756190681452,0.8787657,110220.0,110210.0,0.09762202]
[1756190683155,0.8787657,110220.0,110210.0,0.09250202]
[1756190683358,1.20901442,110220.0,110210.0,0.09250202]
[1756190683579,1.20901442,110220.0,110210.0,0.09558202]
[1756190686282,1.20901442,110220.0,110210.0,0.09250202]
[1756190686888,1.20901442,110220.0,110210.0,0.09558202]
[1756190688587,1.20794442,110220.0,110210.0,0.09762202]
[1756190693212,1.20794442,110220.0,110210.0,0.09250202]
[1756190693213,1.20886442,110220.0,110210.0,0.09250202]
[1756190693604,1.20886442,110220.0,110210.0,0.09558202]
[1756190695289,1.20886442,110220.0,110210.0,0.00104]
[1756190695500,1.20886442,110220.0,110210.0,0.00401]
[1756190695907,1.20886442,110220.0,110210.0,0.00209]
[1756190697792,1.20886442,110220.0,110210.0,0.00417]
[1756190698825,1.20794442,110220.0,110210.0,0.00417]
[1756190700291,1.20794442,110220.0,110210.0,0.09563202]
[1756190700495,0.71299751,110220.0,110210.0,0.09790041]
[1756190700698,1.20794442,110220.0,110210.0,0.09563202]
[1756190701312,0.87779209,110220.0,110210.0,0.09563202]
[1756190701743,0.87779209,110220.0,110210.0,0.27937214]
[1756190701947,0.87779209,110220.0,110210.0,0.27710375]
[1756190702429,0.03659533,110220.0,110210.0,0.27710375]
[1756190702620,0.20882277,110220.0,110210.0,0.27710375]
[1756190702817,0.18154177,110220.0,110210.0,0.27710375]
[1756190703239,0.84128326,110220.0,110210.0,0.09563202]
[1756190703857,0.84326326,110220.0,110210.0,0.09663202]
[1756190704079,0.84326326,110220.0,110210.0,0.24646202]
[1756190704606,0.84326326,110220.0,110210.0,0.24943202]
[1756190704812,0.84326326,110220.0,110210.0,0.25151202]
[1756190705051,0.84326326,110220.0,110210.0,0.25251202]
[1756190705261,0.84326326,110220.0,110210.0,0.24746202]
[1756190705846,0.84326326,110220.0,110210.0,0.09346202]
[1756190706250,0.85232808,110220.0,110210.0,0.09346202]
[1756190706460,0.87961008,110220.0,110210.0,0.09346202]
[1756190707939,1.03361008,110220.0,110210.0,0.09346202]
[1756190709155,0.87763008,110220.0,110210.0,0.09851202]
[1756190709355,0.21788859,110220.0,110210.0,0.28225214]
[1756190709583,0.21788859,110220.0,110210.0,0.27998375]
[1756190709758,0.03643332,110220.0,110210.0,0.27998375]
[1756190710180,0.00915132,110220.0,110210.0,0.27998375]
[1756190710787,8.65e-05,110220.0,110210.0,0.93972524]
[1756190711147,8.65e-05,110220.0,110210.0,0.27998375]
[1756190714500,0.83181197,110240.0,110210.0,0.27998375]
[1756190714746,0.18144152,110230.0,110220.0,0.24843202]
[1756190715070,0.84118301,110230.0,110220.0,0.25051202]
[1756190715485,0.84118301,110230.0,110220.0,0.09651202]
[1756190715693,0.84118301,110230.0,110220.0,0.25051202]
[1756190716097,0.84316301,110230.0,110220.0,0.09146202]
[1756190716286,0.84316301,110230.0,110220.0,0.24546202]
[1756190716551,0.84471301,110230.0,110220.0,0.09146202]
[1756190717435,0.88113815,110230.0,110220.0,0.09146202]
[1756190718372,0.88113815,110230.0,110210.0,0.15514316]
[1756190718373,0.18145527,110220.0,110210.0,0.15514316]
[1756190718480,0.84119676,110220.0,110210.0,0.24660518]
[1756190718690,0.84317676,110220.0,110210.0,0.24660518]
[1756190719970,0.84317676,110220.0,110210.0,0.09260518]
[1756190720273,0.84317676,110220.0,110210.0,0.24660518]
[1756190720708,0.84317676,110220.0,110210.0,0.09260518]
[1756190721135,0.87200876,110220.0,110210.0,0.15514316]
[1756190722043,0.87200876,110220.0,110210.0,0.15614316]
[1756190723124,0.87200876,110220.0,110210.0,0.00214316]
[1756190723584,0.87200876,110220.0,110210.0,0.00114316]
[1756190724725,0.87200876,110220.0,110210.0,0.00214316]
[1756190725682,1.02441876,110220.0,110210.0,0.00214316]
[1756190726373,0.87045876,110220.0,110210.0,0.00214316]
[1756190726844,1.02441876,110220.0,110210.0,0.00214316]
[1756190729931,1.02441876,110220.0,110210.0,0.00114316]
[1756190730408,1.02441876,110220.0,110210.0,0.00014316]
[1756190732479,0.87045876,110220.0,110210.0,0.00014316]
[1756190732688,1.02441876,110220.0,110210.0,0.00014316]
[1756190733446,0.86847876,110220.0,110210.0,0.00518316]
[1756190733643,0.86847876,110220.0,110210.0,0.09664518]
[1756190734109,0.86847876,110220.0,110210.0,0.2803853]
[1756190734317,0.86847876,110220.0,110210.0,0.27811691]
[1756190735286,0.84119676,110220.0,110210.0,0.27811691]
[1756190735626,0.84119676,110220.0,110210.0,0.09664518]
[1756190738458,0.84119676,110220.0,110210.0,0.25060518]
[1756190739332,0.84119676,110220.0,110210.0,0.09664518]
[1756190739534,0.84119676,110220.0,110210.0,0.25060518]
[1756190744552,0.84315676,110220.0,110210.0,0.09664518]
[1756190744768,0.84315676,110220.0,110210.0,0.25060518]
[1756190747243,0.84119676,110220.0,110210.0,0.25060518]
[1756190748105,0.84315676,110220.0,110210.0,0.25060518]
[1756190748513,0.18145527,110220.0,110210.0,0.25060518]
[1756190748934,0.84119676,110220.0,110210.0,0.25060518]
[1756190751074,0.18145527,110220.0,110210.0,0.25060518]
[1756190751256,0.84119676,110220.0,110210.0,0.25060518]
[1756190753229,0.21786666,110230.0,110220.0,0.18145527]
[1756190753468,0.87760815,110230.0,110220.0,0.09650202]
[1756190755589,0.21786666,110230.0,110220.0,0.09650202]
[1756190755722,0.87760815,110230.0,110220.0,0.09650202]
[1756190756608,0.87760815,110230.0,110220.0,0.09877021]
[1756190757016,0.85032815,110230.0,110220.0,0.09877021]
[1756190757183,0.85032815,110230.0,110220.0,0.09650202]
[1756190758353,0.19058666,110230.0,110220.0,0.09650202]
[1756190758572,0.85032815,110230.0,110220.0,0.09650202]
[1756190759368,0.85230815,110230.0,110220.0,0.09650202]
[1756190759610,0.85230815,110230.0,110220.0,0.24538202]
[1756190761705,0.85230815,110230.0,110220.0,0.24853202]
[1756190761909,0.85230815,110230.0,110220.0,0.24697202]
[1756190762160,0.85230815,110230.0,110220.0,0.24382202]
[1756190762825,0.85230815,110230.0,110220.0,0.24697202]
[1756190763270,0.19256666,110230.0,110220.0,0.24913202]
[1756190763486,0.85230815,110230.0,110220.0,0.24913202]
[1756190763691,0.85032815,110230.0,110220.0,0.24913202]
[1756190764109,0.85032815,110230.0,110220.0,0.43058729]
[1756190765403,0.85032815,110230.0,110220.0,0.24913202]
[1756190767223,0.85032815,110230.0,110220.0,0.24697202]
[1756190767441,0.85187815,110230.0,110220.0,0.24697202]
[1756190768104,0.85187815,110230.0,110220.0,0.08990202]
[1756190768323,0.85187815,110230.0,110220.0,0.24378202]
[1756190768823,0.85187815,110230.0,110220.0,0.08990202]
[1756190769061,0.85187815,110230.0,110220.0,0.24378202]
[1756190769274,0.85187815,110230.0,110220.0,0.08990202]
[1756190769497,0.85187815,110230.0,110220.0,0.24378202]
[1756190769694,0.85342815,110230.0,110220.0,0.24378202]
[1756190770323,0.85187815,110230.0,110220.0,0.24378202]
[1756190772043,0.85187815,110230.0,110220.0,0.08990202]
[1756190772252,0.18145527,110220.0,110210.0,0.15717316]
[1756190772455,0.84317676,110220.0,110210.0,0.25079518]
[1756190775006,0.18145527,110220.0,110210.0,0.43226691]
[1756190775192,0.18145527,110220.0,110210.0,0.43326691]
[1756190775829,0.87761015,110230.0,110210.0,0.43326691]
[1756190776125,0.87761015,110230.0,110220.0,0.09146202]
[1756190776344,0.87761015,110230.0,110220.0,0.09677202]
[1756190776785,0.21786866,110230.0,110220.0,0.28049548]
[1756190777009,0.21786866,110230.0,110220.0,0.09677202]
[1756190777010,0.87761015,110230.0,110220.0,0.09677202]
[1756190777233,0.85032815,110230.0,110220.0,0.09677202]
[1756190777442,0.85230815,110230.0,110220.0,0.24849202]
[1756190777662,0.85230815,110230.0,110220.0,0.09146202]
[1756190777874,0.85385815,110230.0,110220.0,0.24534202]
[1756190778549,0.85230815,110230.0,110220.0,0.24534202]
[1756190778761,0.85385815,110230.0,110220.0,0.24534202]
[1756190779639,0.85230815,110230.0,110220.0,0.24534202]
[1756190781008,1.00618815,110230.0,110220.0,0.24534202]
[1756190781140,1.00614815,110230.0,110220.0,0.25065202]
[1756190781373,0.34640666,110230.0,110220.0,0.25065202]
[1756190781583,1.00614815,110230.0,110220.0,0.25065202]
[1756190783060,0.85230815,110230.0,110220.0,0.25065202]
[1756190783937,0.19256666,110230.0,110220.0,0.25065202]
[1756190784132,0.85032815,110230.0,110220.0,0.25065202]
[1756190788254,0.85032815,110230.0,110220.0,0.43210729]
[1756190788255,0.85032543,110230.0,110220.0,0.43210729]
[1756190788453,0.00914514,110230.0,110220.0,0.43210729]
[1756190788870,0.85908997,110240.0,110220.0,0.43210729]
[1756190789068,0.85908997,110240.0,110230.0,0.1814388]
[1756190789386,0.20870035,110240.0,110230.0,0.27792082]
[1756190789715,0.86844184,110240.0,110230.0,0.27792082]
[1756190790068,0.84116384,110240.0,110230.0,0.27792082]
[1756190790433,0.84116157,110250.0,110240.0,0.18142235]
[1756190790640,0.84116157,110250.0,110240.0,0.25032202]
[1756190791355,0.86843657,110250.0,110240.0,0.25032202]
[1756190791564,0.88474147,110250.0,110240.0,0.25032202]
[1756190791781,0.85746647,110250.0,110240.0,0.25032202]
[1756190791976,0.85746647,110250.0,110240.0,0.43174437]
[1756190792398,0.85846647,110250.0,110240.0,0.43174437]
[1756190792818,0.19872498,110250.0,110240.0,0.43174437]
[1756190793022,0.85846647,110250.0,110240.0,0.43174437]
[1756190793224,0.19872498,110250.0,110240.0,0.43174437]
[1756190793427,0.85846647,110250.0,110240.0,0.43174437]
[1756190794259,0.19972498,110250.0,110240.0,0.43174437]
[1756190794457,0.85946647,110250.0,110240.0,0.43174437]
[1756190794666,0.0183049,110250.0,110240.0,0.43174437]
[1756190795834,0.0173049,110250.0,110240.0,0.43174437]
[1756190796864,0.001,110250.0,110240.0,0.43174437]
[1756190798658,0.87750287,110260.0,110250.0,0.18140589]
[1756190798858,0.85022987,110260.0,110250.0,0.27495791]
[1756190799092,0.85022987,110260.0,110250.0,0.43168791]
[1756190799828,0.85031647,110260.0,110250.0,0.43168791]
[1756190800037,0.85227647,110260.0,110250.0,0.43168791]
[1756190800644,0.85227647,110260.0,110250.0,0.09648202]
[1756190800850,0.8667194,110260.0,110250.0,0.43395548]
[1756190801053,0.8667194,110260.0,110250.0,0.43168791]
[1756190802902,0.67623102,110260.0,110250.0,0.43168791]
[1756190803112,8.66e-05,110260.0,110250.0,0.43168791]
[1756190803973,0.02573927,110280.0,110260.0,0.18138944]
[1756190804180,0.86686795,110280.0,110270.0,0.42868501]
[1756190804385,0.86686795,110280.0,110270.0,0.43161501]
[1756190806279,0.86686795,110280.0,110270.0,0.43261501]
[1756190806690,0.86686795,110280.0,110270.0,0.43361501]
[1756190807181,0.86686795,110280.0,110270.0,0.27985501]
[1756190807381,0.86686795,110280.0,110270.0,0.43361501]
[1756190809288,0.86686795,110280.0,110270.0,0.27985501]
[1756190809425,0.86686795,110280.0,110270.0,0.43357501]
[1756190809934,0.86882795,110280.0,110270.0,0.43357501]
[1756190811171,0.86882795,110280.0,110270.0,0.46084001]
[1756190811827,0.86882795,110280.0,110270.0,0.12574702]
[1756190812110,0.8521565,110280.0,110270.0,0.27946702]
[1756190812680,0.8521565,110280.0,110270.0,0.25354154]
[1756190813073,0.8521565,110280.0,110270.0,0.24852154]
[1756190813464,0.8521565,110280.0,110270.0,0.25354154]
[1756190814169,0.8521565,110280.0,110270.0,0.09982154]
[1756190814360,0.8521565,110280.0,110270.0,0.24852154]
[1756190814518,1.52036208,110280.0,110270.0,0.24852154]
[1756190815337,1.52191208,110280.0,110270.0,0.24852154]
[1756190815567,1.52191208,110280.0,110270.0,0.22125654]
[1756190815972,1.52036309,110280.0,110270.0,0.22125654]
[1756190816166,1.5219131,110280.0,110270.0,0.22125654]
[1756190816525,1.53794457,110280.0,110270.0,0.22125654]
[1756190817512,1.87639457,110280.0,110270.0,0.22125654]
[1756190817996,2.03007457,110280.0,110270.0,0.22125654]
[1756190818587,1.87639457,110280.0,110270.0,0.06753654]
[1756190818790,1.87794457,110280.0,110270.0,0.22121654]
[1756190820048,1.65562636,110280.0,110270.0,0.22121654]
[1756190820294,1.83701355,110280.0,110270.0,0.22121654]
[1756190820720,1.99069355,110280.0,110270.0,0.22121654]
[1756190821220,1.99976137,110280.0,110270.0,0.22121654]
[1756190821472,1.84608137,110280.0,110270.0,0.22121654]
[1756190822392,2.00131137,110280.0,110270.0,0.002]
[1756190822617,0.36450733,110280.0,110270.0,0.28241217]
[1756190822867,0.66821735,110280.0,110270.0,0.34990501]
[1756190823121,0.00847586,110280.0,110270.0,0.34990501]
[1756190823561,0.66821735,110280.0,110270.0,0.37716801]
[1756190824684,0.66822202,110280.0,110270.0,0.37716801]
[1756190825561,0.00848053,110280.0,110270.0,0.37716801]
[1756190825808,0.66822202,110280.0,110270.0,0.37716801]
[1756190827791,0.65974149,110280.0,110270.0,0.37716801]
[1756190827988,0.66822466,110280.0,110270.0,0.37592801]
[1756190831553,0.66822466,110280.0,110270.0,0.52952801]
[1756190834000,0.65974149,110280.0,110270.0,0.52952801]
[1756190834203,0.66823102,110280.0,110270.0,0.52952801]
[1756190836007,0.00848953,110280.0,110270.0,0.52952801]
[1756190837292,0.65974149,110290.0,110280.0,0.18135654]
[1756190837501,0.19180757,110290.0,110280.0,0.43168856]
[1756190837699,0.85154906,110290.0,110280.0,0.43168856]
[1756190838115,0.85154906,110290.0,110280.0,0.27812856]
[1756190838291,0.85154906,110290.0,110280.0,0.42953856]
[1756190838489,0.88116596,110290.0,110280.0,0.45679956]
[1756190838896,0.88116596,110290.0,110280.0,0.45363956]
[1756190841685,0.88116596,110290.0,110280.0,0.45679956]
[1756190842242,0.88116596,110290.0,110280.0,0.30323956]
[1756190842486,0.88116596,110290.0,110280.0,0.45679956]
[1756190843537,0.87267849,110290.0,110280.0,0.45679956]
[1756190843741,0.8811602,110290.0,110280.0,0.45679956]
[1756190844412,0.87422849,110290.0,110280.0,0.11872302]
[1756190844637,0.88116001,110290.0,110280.0,0.27224302]
[1756190844863,0.88116001,110290.0,110280.0,0.45359956]
[1756190845079,0.88116001,110290.0,110280.0,0.45890956]
[1756190845287,0.88116001,110290.0,110280.0,0.45359956]
[1756190845494,0.88116001,110290.0,110280.0,0.11872302]
[1756190845700,0.88116001,110290.0,110280.0,0.27224302]
[1756190846341,0.87267849,110290.0,110280.0,0.27224302]
[1756190847618,0.87267849,110290.0,110280.0,0.45359956]
[1756190848051,0.87267849,110290.0,110280.0,0.42633856]
[1756190849348,0.87267849,110290.0,110280.0,0.42936856]
[1756190849960,0.87208949,110290.0,110280.0,0.42936856]
[1756190852483,0.87208949,110290.0,110280.0,0.43133856]
[1756190852695,0.212348,110290.0,110280.0,0.43133856]
[1756190852906,0.87208949,110290.0,110280.0,0.43133856]
[1756190853301,0.87208949,110290.0,110280.0,0.24998202]
[1756190853504,0.87208949,110290.0,110280.0,0.24801202]
[1756190854235,0.87208949,110290.0,110280.0,0.24498202]
[1756190854465,0.87208949,110290.0,110280.0,0.24494202]
[1756190854686,1.53279098,110290.0,110280.0,0.24494202]
[1756190854922,2.02627098,110290.0,110280.0,0.15348]
[1756190855373,0.18135654,110280.0,110270.0,0.15348]
[1756190855589,1.50222952,110280.0,110270.0,0.24494202]
[1756190856678,1.50222952,110280.0,110270.0,0.24594202]
[1756190857096,1.50222952,110280.0,110270.0,0.24897202]
[1756190859006,0.84248803,110280.0,110270.0,0.43231501]
[1756190860093,0.84109803,110280.0,110270.0,0.43231501]
[1756190860304,0.65974149,110280.0,110270.0,0.43231501]
[1756190860507,0.3968829,110290.0,110280.0,0.18135654]
[1756190860713,1.05662439,110290.0,110280.0,0.27478856]
[1756190860926,1.05662439,110290.0,110280.0,0.27781856]
[1756190861135,1.02935839,110290.0,110280.0,0.27781856]
[1756190862130,0.99974149,110290.0,110280.0,0.27781856]
[1756190864100,0.65974149,110290.0,110280.0,0.27781856]
[1756190865373,0.53091499,110300.0,110290.0,0.1813401]
[1756190865579,0.53244815,110300.0,110290.0,0.42624212]
[1756190865769,0.56252222,110300.0,110290.0,0.42927212]
[1756190866373,0.56252222,110300.0,110290.0,0.43124212]
[1756190866587,1.03135872,110300.0,110290.0,0.43124212]
[1756190866794,0.69135872,110300.0,110290.0,0.43124212]
[1756190867010,0.66128465,110300.0,110290.0,0.43124212]
[1756190867235,0.66028465,110300.0,110290.0,0.43124212]
[1756190867657,0.66028465,110300.0,110290.0,0.50096212]
[1756190868563,0.66167465,110300.0,110290.0,0.34555212]
[1756190868782,0.84299831,110300.0,110290.0,0.31462202]
[1756190868995,0.84299831,110300.0,110290.0,0.16118202]
[1756190869208,0.84299831,110300.0,110290.0,0.31474202]
[1756190869418,0.84299831,110300.0,110290.0,0.31574202]
[1756190869419,0.84399831,110300.0,110290.0,0.31574202]
[1756190869867,0.84495831,110300.0,110290.0,0.24602202]
[1756190870085,0.84395831,110300.0,110290.0,0.24606202]
[1756190870306,0.84395831,110300.0,110290.0,0.09246202]
[1756190870528,0.99755831,110300.0,110290.0,0.1546]
[1756190870966,0.99755831,110300.0,110290.0,0.1556]
[1756190871682,0.99755831,110300.0,110290.0,0.15556]
[1756190872024,1.33755831,110300.0,110290.0,0.15556]
[1756190872231,1.11590288,110300.0,110290.0,0.002]
[1756190872432,1.29722654,110300.0,110290.0,0.002]
[1756190872750,1.30571304,110300.0,110290.0,0.002]
[1756190872948,2.05689982,110300.0,110290.0,0.002]
[1756190873152,1.96545453,110300.0,110290.0,0.002]
[1756190873736,1.99272053,110300.0,110290.0,0.001]
[1756190874143,1.99372053,110300.0,110290.0,0.001]
[1756190874368,2.01069076,110300.0,110290.0,0.001]
[1756190874570,0.18135654,110280.0,110270.0,0.22655]
[1756190874839,1.50083952,110280.0,110270.0,0.31801202]
[1756190875046,1.50083952,110280.0,110270.0,0.24829202]
[1756190876479,1.50083952,110280.0,110270.0,0.25025202]
[1756190876686,0.84109803,110280.0,110270.0,0.25025202]
[1756190877772,0.84109803,110280.0,110270.0,0.25125202]
[1756190880082,0.84109803,110280.0,110270.0,0.43262501]
[1756190880533,0.65974149,110280.0,110270.0,0.50234501]
[1756190880712,0.34,110290.0,110280.0,0.18135654]
[1756190880848,0.99974149,110290.0,110280.0,0.27477856]
[1756190881061,0.99974149,110290.0,110280.0,0.27792856]
[1756190881471,1.18108159,110290.0,110280.0,0.27792856]
[1756190881873,0.5213401,110290.0,110280.0,0.27792856]
[1756190882088,1.18108159,110290.0,110280.0,0.27792856]
[1756190882573,0.99974149,110290.0,110280.0,0.27792856]
[1756190882965,1.19013133,110300.0,110280.0,0.27792856]
[1756190883171,0.53038984,110300.0,110290.0,0.24514202]
[1756190883301,0.53038984,110300.0,110290.0,0.25025202]
[1756190884341,1.19013133,110300.0,110290.0,0.25025202]
[1756190884693,1.19013133,110300.0,110290.0,0.09657202]
[1756190884900,1.19013133,110300.0,110290.0,0.24829202]
[1756190885337,1.19013133,110300.0,110290.0,0.24506202]
[1756190885746,1.19013133,110300.0,110290.0,0.09246202]
[1756190886052,1.34385133,110300.0,110290.0,0.09246202]
[1756190888500,2.09503811,110300.0,110290.0,0.001]
[1756190888787,2.01207549,110300.0,110290.0,0.001]
[1756190889744,0.52135654,110280.0,110270.0,0.2687]
[1756190889974,1.99471952,110280.0,110270.0,0.2687]
[1756190890226,0.52137299,110270.0,110260.0,0.07644699]
[1756190890432,1.18111448,110270.0,110260.0,0.31863901]
[1756190891074,1.18111448,110270.0,110260.0,0.24534202]
[1756190891317,1.18111448,110270.0,110260.0,0.15388]
[1756190891523,0.18140589,110250.0,110240.0,0.10056599]
[1756190891741,0.18140589,110250.0,110240.0,0.34905801]
[1756190891742,0.84114738,110250.0,110240.0,0.34905801]
[1756190891977,0.84114738,110250.0,110240.0,0.35101801]
[1756190892633,0.84114738,110250.0,110240.0,0.34905801]
[1756190892863,0.84114738,110250.0,110240.0,0.34920117]
[1756190893080,0.84114738,110250.0,110240.0,0.09475518]
[1756190893309,0.84114738,110250.0,110240.0,0.24867518]
[1756190893531,0.84114738,110250.0,110240.0,0.25063518]
[1756190893802,0.84114738,110250.0,110240.0,0.25163518]
[1756190894962,0.86613578,110250.0,110240.0,0.25163518]
[1756190895390,0.86613578,110250.0,110240.0,0.24959518]
[1756190895588,0.86613578,110250.0,110240.0,0.25155518]
[1756190896680,0.84114738,110250.0,110240.0,0.25155518]
[1756190897753,0.86593349,110250.0,110240.0,0.09260518]
[1756190897986,0.86593349,110250.0,110240.0,0.24636518]
[1756190897987,1.20593349,110250.0,110240.0,0.24636518]
[1756190898403,1.20593349,110250.0,110240.0,0.24951518]
[1756190899064,1.20593349,110250.0,110240.0,0.25147518]
[1756190899965,1.20593349,110250.0,110240.0,0.24951518]
[1756190901318,1.20593349,110250.0,110240.0,0.09260518]
[1756190901538,1.20593349,110250.0,110240.0,0.24628518]
[1756190902776,1.35961349,110250.0,110240.0,0.09260518]
[1756190902981,1.35961349,110250.0,110240.0,0.24628518]
[1756190903386,1.35957349,110250.0,110240.0,0.00114316]
[1756190903616,1.32409757,110250.0,110240.0,0.00114316]
[1756190904046,1.17045757,110250.0,110240.0,0.00114316]
[1756190904254,1.32409757,110250.0,110240.0,0.00429316]
[1756190904673,1.34983634,110250.0,110240.0,0.00429316]
[1756190905872,1.34983634,110250.0,110240.0,0.00629316]
[1756190906296,1.19619634,110250.0,110240.0,0.00314316]
[1756190906497,1.34975634,110250.0,110240.0,0.00627316]
[1756190906973,1.34971634,110250.0,110240.0,0.00627316]
[1756190907286,1.34971634,110250.0,110240.0,0.00830316]
[1756190910729,1.19619634,110250.0,110240.0,0.00627316]
[1756190911155,0.53645485,110250.0,110240.0,0.00830316]
[1756190911384,1.19619634,110250.0,110240.0,0.00830316]
[1756190911791,0.53645485,110250.0,110240.0,0.09976518]
[1756190911994,1.19619634,110250.0,110240.0,0.09976518]
[1756190913078,0.53645485,110250.0,110240.0,0.09976518]
[1756190913278,0.84114738,110250.0,110240.0,0.2834553]
[1756190913444,0.84114738,110250.0,110240.0,0.28118753]
[1756190913909,0.84114738,110250.0,110240.0,0.09460518]
[1756190913910,2.01970132,110250.0,110240.0,0.09460518]
[1756190914044,2.05328576,110250.0,110240.0,0.00314316]
[1756190914249,2.09816686,110250.0,110240.0,0.00314316]
[1756190915091,2.12261242,110250.0,110240.0,0.00214316]
[1756190915301,2.14989322,110250.0,110240.0,0.00214316]
[1756190915937,2.21965322,110250.0,110240.0,0.00214316]
[1756190916253,2.22600265,110250.0,110240.0,0.00214316]
[1756190916464,2.19241821,110250.0,110240.0,0.00214316]
[1756190917338,2.22482873,110250.0,110240.0,0.00214316]
[1756190918328,2.20039748,110250.0,110240.0,0.00214316]
[1756190918535,2.20042765,110250.0,110240.0,0.00214316]
[1756190918860,2.2406492,110250.0,110240.0,0.00214316]
[1756190919272,2.28934082,110250.0,110240.0,0.00214316]
[1756190919887,2.24911927,110250.0,110240.0,0.00214316]
[1756190921392,2.21670875,110250.0,110240.0,0.00214316]
[1756190922122,2.21994875,110250.0,110240.0,0.00214316]
[1756190924477,2.23839777,110250.0,110240.0,0.00214316]
[1756190924653,2.30456734,110250.0,110240.0,0.00214316]
[1756190926536,2.30456734,110250.0,110240.0,0.00014316]
[1756190927377,2.30556734,110250.0,110240.0,0.00014316]
[1756190928004,2.30558018,110250.0,110240.0,0.00014316]
[1756190928449,2.27379125,110250.0,110240.0,0.00014316]
[1756190928653,2.30558099,110250.0,110240.0,0.00014316]